[Event "*** SCC Grand Prix: Titled Tuesday Blitz"]
[Site "Chess.com"]
[Date "2020.09.29"]
[Round "4"]
[White "Revnov"]
[Black "GM_LOADING"]
[Result "1-0"]
[WhiteElo "2705"]
[BlackElo "2494"]
[TimeControl "180+1"]
[EndTime "10:38:42 PDT"]
[Termination "Revnov won by resignation"]

1. e4 {[%clk 0:03:00.9]} 1... e5 {[%clk 0:02:59.5]} 2. Nf3 {[%clk 0:03:00.9]}
2... Nc6 {[%clk 0:02:59.4]} 3. Bb5 {[%clk 0:02:56.1]} 3... g6 {[%clk 0:02:58.6]}
4. O-O {[%clk 0:02:43]} 4... Bg7 {[%clk 0:02:54.5]} 5. c3 {[%clk 0:02:43.2]}
5... a6 {[%clk 0:02:54]} 6. Ba4 {[%clk 0:02:42.5]} 6... Nge7 {[%clk 0:02:53.6]}
7. d4 {[%clk 0:02:42.1]} 7... exd4 {[%clk 0:02:54.1]} 8. cxd4 {[%clk 0:02:43]}
8... O-O {[%clk 0:02:54.5]} 9. d5 {[%clk 0:02:40.2]} 9... Na5 {[%clk 0:02:54.4]}
10. Bd2 {[%clk 0:02:32.2]} 10... Nc4 {[%clk 0:02:48.8]} 11. Bc3 {[%clk
0:02:31.1]} 11... Nxb2 {[%clk 0:02:48.8]} 12. Qb3 {[%clk 0:02:25]} 12... Nxa4
{[%clk 0:02:47.2]} 13. Qxa4 {[%clk 0:02:21.3]} 13... d6 {[%clk 0:02:41.2]} 14.
Bxg7 {[%clk 0:02:15.7]} 14... Kxg7 {[%clk 0:02:41.3]} 15. Nc3 {[%clk 0:02:16.2]}
15... c5 {[%clk 0:02:36.3]} 16. dxc6 {[%clk 0:02:06.9]} 16... Nxc6 {[%clk
0:02:35.6]} 17. Nd5 {[%clk 0:01:59.6]} 17... Be6 {[%clk 0:02:23.7]} 18. Rad1
{[%clk 0:01:56.1]} 18... Rc8 {[%clk 0:02:16.8]} 19. h4 {[%clk 0:01:46.2]} 19...
Bg4 {[%clk 0:02:12.8]} 20. Qa3 {[%clk 0:01:45.7]} 20... Ne5 {[%clk 0:02:00]} 21.
Nxe5 {[%clk 0:01:24.1]} 21... Bxd1 {[%clk 0:01:51.3]} 22. Rxd1 {[%clk
0:01:11.9]} 22... dxe5 {[%clk 0:01:51.3]} 23. Qb2 {[%clk 0:01:09.9]} 23... Re8
{[%clk 0:01:41.6]} 24. g3 {[%clk 0:01:04.6]} 24... Rc4 {[%clk 0:01:27.1]} 25.
Re1 {[%clk 0:00:43]} 25... Rxe4 {[%clk 0:01:19.3]} 26. Rxe4 {[%clk 0:00:41.4]}
26... Qxd5 {[%clk 0:01:19.1]} 27. Re1 {[%clk 0:00:40.9]} 27... h5 {[%clk
0:01:11.8]} 28. a4 {[%clk 0:00:40]} 28... b5 {[%clk 0:01:09.1]} 29. axb5 {[%clk
0:00:36.9]} 29... axb5 {[%clk 0:01:10]} 30. Qb4 {[%clk 0:00:35.2]} 30... e4
{[%clk 0:01:03.4]} 31. Qc3+ {[%clk 0:00:34.6]} 31... Qe5 {[%clk 0:01:00.3]} 32.
Qb4 {[%clk 0:00:33.5]} 32... Re6 {[%clk 0:00:56.5]} 33. Kh2 {[%clk 0:00:31.9]}
33... Qf6 {[%clk 0:00:51.7]} 34. Kg1 {[%clk 0:00:30.4]} 34... Qf3 {[%clk
0:00:43.4]} 35. Re3 {[%clk 0:00:23.2]} 35... Qd1+ {[%clk 0:00:43.3]} 36. Kg2
{[%clk 0:00:23.6]} 36... Qd5 {[%clk 0:00:42]} 37. Kg1 {[%clk 0:00:24]} 37... Qc4
{[%clk 0:00:33.2]} 38. Qb2+ {[%clk 0:00:23.2]} 38... Kg8 {[%clk 0:00:32.3]} 39.
Rc3 {[%clk 0:00:23.4]} 39... Qd4 {[%clk 0:00:16.1]} 40. Rc8+ {[%clk 0:00:20.3]}
1-0

[Event "*** SCC Grand Prix: Titled Tuesday Blitz"]
[Site "Chess.com"]
[Date "2020.09.29"]
[Round "4"]
[White "AvitalBor"]
[Black "Th3_Hound"]
[Result "1-0"]
[WhiteElo "2779"]
[BlackElo "2521"]
[TimeControl "180+1"]
[EndTime "10:38:43 PDT"]
[Termination "AvitalBor won by resignation"]

1. e4 {[%clk 0:03:00.9]} 1... e5 {[%clk 0:02:59.6]} 2. Nf3 {[%clk 0:02:58.2]}
2... Nc6 {[%clk 0:03:00]} 3. Bb5 {[%clk 0:02:56]} 3... a6 {[%clk 0:02:59.7]} 4.
Ba4 {[%clk 0:02:56.1]} 4... Nf6 {[%clk 0:02:55.7]} 5. d3 {[%clk 0:02:56.3]} 5...
b5 {[%clk 0:02:55.3]} 6. Bb3 {[%clk 0:02:56.2]} 6... Be7 {[%clk 0:02:55.2]} 7.
O-O {[%clk 0:02:55.9]} 7... d6 {[%clk 0:02:55.1]} 8. c3 {[%clk 0:02:56.3]} 8...
O-O {[%clk 0:02:52.2]} 9. Re1 {[%clk 0:02:56.7]} 9... Na5 {[%clk 0:02:48]} 10.
Bc2 {[%clk 0:02:56.5]} 10... c5 {[%clk 0:02:47.9]} 11. Nbd2 {[%clk 0:02:57.2]}
11... Nc6 {[%clk 0:02:47.6]} 12. Nf1 {[%clk 0:02:57.5]} 12... h6 {[%clk
0:02:47.2]} 13. Ng3 {[%clk 0:02:57]} 13... Re8 {[%clk 0:02:47.3]} 14. h3 {[%clk
0:02:50.4]} 14... Bf8 {[%clk 0:02:44.5]} 15. d4 {[%clk 0:02:46.5]} 15... cxd4
{[%clk 0:02:35.3]} 16. cxd4 {[%clk 0:02:47.4]} 16... Bd7 {[%clk 0:02:20]} 17.
Be3 {[%clk 0:02:43.6]} 17... Rc8 {[%clk 0:02:13.5]} 18. Rc1 {[%clk 0:02:41.7]}
18... Nb4 {[%clk 0:02:02.7]} 19. Bb1 {[%clk 0:02:41.6]} 19... a5 {[%clk
0:02:01.4]} 20. Qd2 {[%clk 0:02:34.7]} 20... Rxc1 {[%clk 0:01:40.5]} 21. Rxc1
{[%clk 0:02:35.6]} 21... Qa8 {[%clk 0:01:37.9]} 22. a3 {[%clk 0:02:30]} 22...
Nc6 {[%clk 0:01:33.7]} 23. d5 {[%clk 0:02:28.2]} 23... Ne7 {[%clk 0:01:24.4]}
24. Rc7 {[%clk 0:02:11.1]} 24... Rc8 {[%clk 0:01:23]} 25. Ra7 {[%clk 0:02:07.5]}
25... Qb8 {[%clk 0:01:19.5]} 26. Qxa5 {[%clk 0:02:05.1]} 26... Ng6 {[%clk
0:01:14.3]} 27. Ne2 {[%clk 0:01:58.8]} 27... Be7 {[%clk 0:01:12.1]} 28. Qa6
{[%clk 0:01:53.1]} 28... Bd8 {[%clk 0:00:59]} 29. Rb7 {[%clk 0:01:41]} 29... Qa8
{[%clk 0:00:56.1]} 30. Qxa8 {[%clk 0:01:39.3]} 30... Rxa8 {[%clk 0:00:57]} 31.
Bd3 {[%clk 0:01:39.4]} 31... Bc8 {[%clk 0:00:42.4]} 32. Ra7 {[%clk 0:01:30.8]}
32... Rb8 {[%clk 0:00:42.3]} 33. b4 {[%clk 0:01:27.6]} 33... Bd7 {[%clk
0:00:37.5]} 34. Kf1 {[%clk 0:01:23.5]} 34... Ne7 {[%clk 0:00:37]} 35. Nc3 {[%clk
0:01:18.3]} 35... Nc8 {[%clk 0:00:33.7]} 36. Ra6 {[%clk 0:01:18.4]} 36... Ne8
{[%clk 0:00:33.4]} 37. a4 {[%clk 0:00:56]} 37... bxa4 {[%clk 0:00:27.7]} 38. b5
{[%clk 0:00:55.8]} 38... Nc7 {[%clk 0:00:26.1]} 39. Rxa4 {[%clk 0:00:53.5]}
39... Nb6 {[%clk 0:00:26.3]} 40. Ra1 {[%clk 0:00:43.4]} 40... f5 {[%clk
0:00:18.3]} 41. Nd2 {[%clk 0:00:35.9]} 41... f4 {[%clk 0:00:17.3]} 42. Bxb6
{[%clk 0:00:35.8]} 42... Rxb6 {[%clk 0:00:18.2]} 43. Nc4 {[%clk 0:00:36.2]}
43... Rxb5 {[%clk 0:00:14.9]} 44. Nxb5 {[%clk 0:00:35.7]} 44... Nxb5 {[%clk
0:00:15.8]} 45. Ra8 {[%clk 0:00:34]} 1-0

[Event "*** SCC Grand Prix: Titled Tuesday Blitz"]
[Site "Chess.com"]
[Date "2020.09.29"]
[Round "4"]
[White "Rital44"]
[Black "Sychev_Klementy"]
[Result "0-1"]
[WhiteElo "2360"]
[BlackElo "2877"]
[TimeControl "180+1"]
[EndTime "10:38:43 PDT"]
[Termination "Sychev_Klementy won by checkmate"]

1. e4 {[%clk 0:02:48.8]} 1... e5 {[%clk 0:02:59]} 2. Nf3 {[%clk 0:02:43.8]} 2...
Nc6 {[%clk 0:02:59]} 3. Bb5 {[%clk 0:02:43.2]} 3... a6 {[%clk 0:02:58.5]} 4. Ba4
{[%clk 0:02:42.1]} 4... Nf6 {[%clk 0:02:58.5]} 5. O-O {[%clk 0:02:41.4]} 5... b5
{[%clk 0:02:58.7]} 6. Bb3 {[%clk 0:02:40.4]} 6... Bc5 {[%clk 0:02:59.3]} 7. c3
{[%clk 0:02:35.1]} 7... d6 {[%clk 0:02:59.2]} 8. d4 {[%clk 0:02:32.9]} 8... Bb6
{[%clk 0:02:59.5]} 9. Bg5 {[%clk 0:02:23.5]} 9... h6 {[%clk 0:02:44]} 10. Bd5
{[%clk 0:02:22.8]} 10... Bb7 {[%clk 0:02:33]} 11. Bh4 {[%clk 0:02:11.7]} 11...
g5 {[%clk 0:02:32.3]} 12. Bg3 {[%clk 0:02:07.6]} 12... exd4 {[%clk 0:02:28.4]}
13. cxd4 {[%clk 0:02:02.8]} 13... Nxd5 {[%clk 0:02:22.2]} 14. exd5 {[%clk
0:02:03.7]} 14... Ne7 {[%clk 0:02:22.4]} 15. Nc3 {[%clk 0:02:02.7]} 15... Nxd5
{[%clk 0:02:19.9]} 16. Re1+ {[%clk 0:02:02.3]} 16... Kf8 {[%clk 0:02:16.9]} 17.
h4 {[%clk 0:01:44.5]} 17... Nxc3 {[%clk 0:02:08.6]} 18. bxc3 {[%clk 0:01:42.3]}
18... Bd5 {[%clk 0:01:59.6]} 19. a4 {[%clk 0:01:35.4]} 19... Kg7 {[%clk
0:01:54.5]} 20. Qd2 {[%clk 0:01:33.9]} 20... Bxf3 {[%clk 0:01:48.5]} 21. gxf3
{[%clk 0:01:34.8]} 21... Qf6 {[%clk 0:01:48.8]} 22. hxg5 {[%clk 0:01:27.2]}
22... hxg5 {[%clk 0:01:45.9]} 23. Re5 {[%clk 0:01:27.1]} 23... Rh5 {[%clk
0:01:29.1]} 24. Kg2 {[%clk 0:01:12.7]} 24... Rah8 {[%clk 0:01:22.8]} 25. axb5
{[%clk 0:01:12.3]} 25... axb5 {[%clk 0:01:22.5]} 26. Rae1 {[%clk 0:01:09.7]}
26... Qh6 {[%clk 0:01:21]} 27. Rxb5 {[%clk 0:00:39.9]} 27... c6 {[%clk
0:00:29.1]} 28. Rf5 {[%clk 0:00:20]} 28... Rh2+ {[%clk 0:00:28.5]} 29. Bxh2
{[%clk 0:00:10.6]} 29... Qxh2+ {[%clk 0:00:28.4]} 30. Kf1 {[%clk 0:00:11.5]}
30... Qh3+ {[%clk 0:00:27.8]} 31. Ke2 {[%clk 0:00:12.2]} 31... Re8+ {[%clk
0:00:25.2]} 32. Re5 {[%clk 0:00:11.9]} 32... dxe5 {[%clk 0:00:22.6]} 33. Qxg5+
{[%clk 0:00:12.4]} 33... Kf8 {[%clk 0:00:21.7]} 34. d5 {[%clk 0:00:12.2]} 34...
e4 {[%clk 0:00:20.4]} 35. f4 {[%clk 0:00:07.5]} 35... Qd3# {[%clk 0:00:19.8]}
0-1

[Event "*** SCC Grand Prix: Titled Tuesday Blitz"]
[Site "Chess.com"]
[Date "2020.09.29"]
[Round "4"]
[White "LogoCzar"]
[Black "Kaua18"]
[Result "1-0"]
[WhiteElo "2424"]
[BlackElo "2254"]
[TimeControl "180+1"]
[EndTime "10:38:44 PDT"]
[Termination "LogoCzar won on time"]

1. e4 {[%clk 0:03:00.9]} 1... c5 {[%clk 0:03:00.2]} 2. Nf3 {[%clk 0:03:00.5]}
2... Nc6 {[%clk 0:03:00.8]} 3. d4 {[%clk 0:03:00.8]} 3... cxd4 {[%clk
0:03:01.7]} 4. Nxd4 {[%clk 0:03:01.5]} 4... Nf6 {[%clk 0:03:02.4]} 5. Nc3 {[%clk
0:03:01.7]} 5... e5 {[%clk 0:03:02.9]} 6. Ndb5 {[%clk 0:03:02]} 6... d6 {[%clk
0:03:03.4]} 7. Bg5 {[%clk 0:03:02.2]} 7... a6 {[%clk 0:03:04.1]} 8. Na3 {[%clk
0:03:01.7]} 8... b5 {[%clk 0:03:04.8]} 9. Nd5 {[%clk 0:03:02.2]} 9... Be7 {[%clk
0:03:05.3]} 10. Bxf6 {[%clk 0:03:02.7]} 10... Bxf6 {[%clk 0:03:06.2]} 11. c3
{[%clk 0:03:03.3]} 11... Bg5 {[%clk 0:03:06.6]} 12. Nc2 {[%clk 0:03:03.7]} 12...
O-O {[%clk 0:03:07]} 13. a4 {[%clk 0:03:03.3]} 13... bxa4 {[%clk 0:03:07.9]} 14.
Rxa4 {[%clk 0:03:03.6]} 14... a5 {[%clk 0:03:08.6]} 15. Bc4 {[%clk 0:03:03.5]}
15... Rb8 {[%clk 0:03:09]} 16. Ra2 {[%clk 0:03:03.6]} 16... Kh8 {[%clk
0:03:08.9]} 17. b3 {[%clk 0:02:52.9]} 17... f5 {[%clk 0:03:07.6]} 18. exf5
{[%clk 0:02:51.5]} 18... Bxf5 {[%clk 0:03:08.5]} 19. O-O {[%clk 0:02:51.3]}
19... e4 {[%clk 0:03:06.2]} 20. Nce3 {[%clk 0:02:50.6]} 20... Bg6 {[%clk
0:03:05.8]} 21. f4 {[%clk 0:02:43.6]} 21... exf3 {[%clk 0:02:47.4]} 22. Rxf3
{[%clk 0:02:38.4]} 22... Rxf3 {[%clk 0:02:46.6]} 23. Qxf3 {[%clk 0:02:38.2]}
23... Ne5 {[%clk 0:02:47]} 24. Qe2 {[%clk 0:02:33.9]} 24... Qe8 {[%clk
0:02:29.9]} 25. Kh1 {[%clk 0:02:21.3]} 25... Bh5 {[%clk 0:02:15.9]} 26. g4
{[%clk 0:02:14.1]} 26... Bg6 {[%clk 0:02:01.7]} 27. Nf5 {[%clk 0:01:58.8]} 27...
Qc6 {[%clk 0:01:21]} 28. Rxa5 {[%clk 0:01:49.3]} 28... h6 {[%clk 0:01:03.8]} 29.
Ra6 {[%clk 0:01:39.8]} 29... Qc5 {[%clk 0:01:00.6]} 30. Nxd6 {[%clk 0:01:33.3]}
30... Nxc4 {[%clk 0:00:42.8]} 31. bxc4 {[%clk 0:01:17.6]} 31... Rb1+ {[%clk
0:00:36.7]} 32. Kg2 {[%clk 0:01:16.9]} 32... Qg1+ {[%clk 0:00:28.5]} 33. Kh3
{[%clk 0:01:12.8]} 33... Re1 {[%clk 0:00:23.8]} 34. Qf3 {[%clk 0:00:56]} 34...
Rf1 {[%clk 0:00:12.3]} 35. Qg2 {[%clk 0:00:42.9]} 35... Qxg2+ {[%clk 0:00:07.3]}
36. Kxg2 {[%clk 0:00:43.1]} 36... Rc1 {[%clk 0:00:06.5]} 37. c5 {[%clk
0:00:39.1]} 37... Rd1 {[%clk 0:00:05.1]} 38. c4 {[%clk 0:00:37.5]} 38... Rc1
{[%clk 0:00:02.7]} 39. c6 {[%clk 0:00:36]} 1-0

[Event "*** SCC Grand Prix: Titled Tuesday Blitz"]
[Site "Chess.com"]
[Date "2020.09.29"]
[Round "4"]
[White "queen_iryna"]
[Black "boasovietica"]
[Result "0-1"]
[WhiteElo "2295"]
[BlackElo "2441"]
[TimeControl "180+1"]
[EndTime "10:38:45 PDT"]
[Termination "boasovietica won by resignation"]

1. e4 {[%clk 0:03:00.9]} 1... e5 {[%clk 0:02:53.8]} 2. Nf3 {[%clk 0:02:59.4]}
2... Nc6 {[%clk 0:02:53.6]} 3. Bb5 {[%clk 0:02:56.2]} 3... a6 {[%clk 0:02:52.7]}
4. Bxc6 {[%clk 0:02:55.2]} 4... dxc6 {[%clk 0:02:46.8]} 5. O-O {[%clk
0:02:55.2]} 5... Bg4 {[%clk 0:02:45.8]} 6. d3 {[%clk 0:02:48.8]} 6... Qf6 {[%clk
0:02:43.3]} 7. Nbd2 {[%clk 0:02:46.4]} 7... Bd6 {[%clk 0:02:40.6]} 8. h3 {[%clk
0:02:45.3]} 8... h5 {[%clk 0:02:40.2]} 9. Re1 {[%clk 0:02:24.5]} 9... Bd7 {[%clk
0:02:11.8]} 10. Nc4 {[%clk 0:02:20.8]} 10... Ne7 {[%clk 0:02:07]} 11. Bg5 {[%clk
0:02:20]} 11... Qe6 {[%clk 0:02:06.8]} 12. Bxe7 {[%clk 0:01:43.2]} 12... Qxe7
{[%clk 0:02:02.2]} 13. Ne3 {[%clk 0:01:39.3]} 13... g6 {[%clk 0:01:59.2]} 14. d4
{[%clk 0:01:36.6]} 14... exd4 {[%clk 0:01:52.8]} 15. Qxd4 {[%clk 0:01:37.5]}
15... O-O-O {[%clk 0:01:50.7]} 16. e5 {[%clk 0:01:28.8]} 16... Bc5 {[%clk
0:01:46.5]} 17. Qf4 {[%clk 0:01:28.7]} 17... Be6 {[%clk 0:01:40.8]} 18. c3
{[%clk 0:01:22.2]} 18... Rd7 {[%clk 0:01:25.6]} 19. b4 {[%clk 0:01:21.8]} 19...
Bb6 {[%clk 0:01:21.7]} 20. a4 {[%clk 0:01:21.4]} 20... Rd3 {[%clk 0:01:18]} 21.
b5 {[%clk 0:01:18.9]} 21... cxb5 {[%clk 0:01:12.9]} 22. axb5 {[%clk 0:01:19.7]}
22... a5 {[%clk 0:01:13.5]} 23. Nd4 {[%clk 0:01:09.9]} 23... Rxc3 {[%clk
0:01:05.3]} 24. Rec1 {[%clk 0:01:03.9]} 24... Rxc1+ {[%clk 0:01:03.8]} 25. Rxc1
{[%clk 0:01:04.8]} 25... Rd8 {[%clk 0:01:00]} 26. Nxe6 {[%clk 0:01:04.5]} 26...
Qxe6 {[%clk 0:00:59]} 27. Nc4 {[%clk 0:01:04.5]} 27... Kb8 {[%clk 0:00:52.6]}
28. Nxb6 {[%clk 0:01:01.9]} 28... cxb6 {[%clk 0:00:53.5]} 29. Kh2 {[%clk
0:00:57.6]} 29... Rd5 {[%clk 0:00:51.9]} 30. Qc4 {[%clk 0:00:48.1]} 30... Qxe5+
{[%clk 0:00:47.7]} 31. f4 {[%clk 0:00:48.4]} 31... Qd6 {[%clk 0:00:41.4]} 32.
Qc8+ {[%clk 0:00:46.8]} 32... Ka7 {[%clk 0:00:41.9]} 33. Qc4 {[%clk 0:00:44.8]}
33... Rc5 {[%clk 0:00:40.9]} 34. Qf1 {[%clk 0:00:43.8]} 34... g5 {[%clk
0:00:34.6]} 35. Rxc5 {[%clk 0:00:40.3]} 35... bxc5 {[%clk 0:00:33.8]} 36. g3
{[%clk 0:00:39.3]} 36... Qd2+ {[%clk 0:00:33.5]} 37. Kh1 {[%clk 0:00:38.9]}
37... gxf4 {[%clk 0:00:33.2]} 38. gxf4 {[%clk 0:00:39.8]} 38... a4 {[%clk
0:00:31]} 39. Qb1 {[%clk 0:00:37.8]} 39... Qb4 {[%clk 0:00:26.4]} 40. Qf5 {[%clk
0:00:35]} 40... a3 {[%clk 0:00:24]} 41. Qxf7 {[%clk 0:00:34.7]} 41... Qb1+
{[%clk 0:00:21.5]} 42. Kg2 {[%clk 0:00:34.5]} 42... a2 {[%clk 0:00:20.2]} 43.
b6+ {[%clk 0:00:34.7]} 43... Kxb6 {[%clk 0:00:18.2]} 44. Qg6+ {[%clk 0:00:33.4]}
44... Qxg6+ {[%clk 0:00:17.4]} 0-1

[Event "*** SCC Grand Prix: Titled Tuesday Blitz"]
[Site "Chess.com"]
[Date "2020.09.29"]
[Round "4"]
[White "ENajer77"]
[Black "pastouche06"]
[Result "1-0"]
[WhiteElo "2704"]
[BlackElo "2489"]
[TimeControl "180+1"]
[EndTime "10:38:47 PDT"]
[Termination "ENajer77 won by resignation"]

1. e4 {[%clk 0:03:00.9]} 1... c6 {[%clk 0:02:59.8]} 2. d4 {[%clk 0:03:00.5]}
2... d5 {[%clk 0:02:59.5]} 3. e5 {[%clk 0:03:01.1]} 3... c5 {[%clk 0:02:54.4]}
4. Nf3 {[%clk 0:03:00]} 4... cxd4 {[%clk 0:02:51.2]} 5. Nxd4 {[%clk 0:02:58.6]}
5... e6 {[%clk 0:02:50]} 6. Bd3 {[%clk 0:02:55.8]} 6... Nc6 {[%clk 0:02:48.2]}
7. Nxc6 {[%clk 0:02:55.8]} 7... bxc6 {[%clk 0:02:49.1]} 8. O-O {[%clk 0:02:56]}
8... Ne7 {[%clk 0:02:41.3]} 9. Nd2 {[%clk 0:02:49.2]} 9... Ng6 {[%clk
0:02:25.9]} 10. Nf3 {[%clk 0:02:46.5]} 10... Be7 {[%clk 0:02:25.2]} 11. Qe2
{[%clk 0:02:28.4]} 11... O-O {[%clk 0:02:20.9]} 12. g3 {[%clk 0:02:25]} 12... f5
{[%clk 0:01:56.7]} 13. c4 {[%clk 0:02:09.6]} 13... d4 {[%clk 0:01:29.8]} 14. c5
{[%clk 0:01:06.3]} 14... Bxc5 {[%clk 0:01:28.3]} 15. Bc4 {[%clk 0:01:02.9]}
15... Be7 {[%clk 0:01:19.5]} 16. Rd1 {[%clk 0:00:56.1]} 16... c5 {[%clk
0:01:18.8]} 17. b4 {[%clk 0:00:55.7]} 17... Qb6 {[%clk 0:01:01.1]} 18. bxc5
{[%clk 0:00:52.1]} 18... Bxc5 {[%clk 0:01:02]} 19. Ng5 {[%clk 0:00:49.2]} 19...
f4 {[%clk 0:00:36.5]} 20. Qh5 {[%clk 0:00:26.5]} 20... h6 {[%clk 0:00:36.5]} 21.
Qxg6 {[%clk 0:00:23.1]} 21... hxg5 {[%clk 0:00:32.6]} 22. Bd3 {[%clk 0:00:22.5]}
22... Bb7 {[%clk 0:00:07.3]} 23. Qh7+ {[%clk 0:00:12.1]} 23... Kf7 {[%clk
0:00:07.5]} 24. Bg6+ {[%clk 0:00:11.9]} 24... Ke7 {[%clk 0:00:08]} 25. Rb1
{[%clk 0:00:11.6]} 25... Qc6 {[%clk 0:00:07.5]} 26. Qxg7+ {[%clk 0:00:11.4]}
26... Kd8 {[%clk 0:00:07.9]} 27. Qxb7 {[%clk 0:00:11.1]} 27... Qxb7 {[%clk
0:00:07.6]} 28. Rxb7 {[%clk 0:00:11.7]} 28... fxg3 {[%clk 0:00:07.6]} 29. hxg3
{[%clk 0:00:10.9]} 29... Kc8 {[%clk 0:00:07.2]} 30. Rh7 {[%clk 0:00:09]} 30...
d3 {[%clk 0:00:05.7]} 31. Be3 {[%clk 0:00:08.7]} 31... Bxe3 {[%clk 0:00:05.3]}
32. fxe3 {[%clk 0:00:09.4]} 1-0

[Event "*** SCC Grand Prix: Titled Tuesday Blitz"]
[Site "Chess.com"]
[Date "2020.09.29"]
[Round "4"]
[White "vovachesss"]
[Black "SharapovEvgeny"]
[Result "1-0"]
[WhiteElo "2687"]
[BlackElo "2472"]
[TimeControl "180+1"]
[EndTime "10:38:48 PDT"]
[Termination "vovachesss won by resignation"]

1. c4 {[%clk 0:03:00.9]} 1... c6 {[%clk 0:02:59]} 2. Nc3 {[%clk 0:03:00]} 2...
d5 {[%clk 0:02:58.8]} 3. e3 {[%clk 0:03:00.6]} 3... Nf6 {[%clk 0:02:58.7]} 4.
Nf3 {[%clk 0:03:01.1]} 4... g6 {[%clk 0:02:58.8]} 5. b3 {[%clk 0:02:58.5]} 5...
Bg7 {[%clk 0:02:58.6]} 6. Bb2 {[%clk 0:02:59.2]} 6... O-O {[%clk 0:02:58.6]} 7.
Be2 {[%clk 0:02:59.9]} 7... Bg4 {[%clk 0:02:58.3]} 8. O-O {[%clk 0:03:00.2]}
8... Nbd7 {[%clk 0:02:57.8]} 9. d4 {[%clk 0:02:59.5]} 9... e6 {[%clk 0:02:57.2]}
10. Rc1 {[%clk 0:02:59.2]} 10... Re8 {[%clk 0:02:56.6]} 11. h3 {[%clk
0:02:58.4]} 11... Bxf3 {[%clk 0:02:56.1]} 12. Bxf3 {[%clk 0:02:59.3]} 12... a6
{[%clk 0:02:53.1]} 13. e4 {[%clk 0:02:54.1]} 13... dxe4 {[%clk 0:02:52.2]} 14.
Nxe4 {[%clk 0:02:55]} 14... Nxe4 {[%clk 0:02:51.9]} 15. Bxe4 {[%clk 0:02:55.9]}
15... Nf6 {[%clk 0:02:51.2]} 16. Bf3 {[%clk 0:02:56.2]} 16... Qa5 {[%clk
0:02:49.9]} 17. Bc3 {[%clk 0:02:49.3]} 17... Qb6 {[%clk 0:02:46.5]} 18. Qd2
{[%clk 0:02:46.5]} 18... Rad8 {[%clk 0:02:32.4]} 19. Ba5 {[%clk 0:02:45.1]}
19... Qxd4 {[%clk 0:02:31.7]} 20. Qb4 {[%clk 0:02:33.3]} 20... Rd7 {[%clk
0:02:10.3]} 21. Rcd1 {[%clk 0:02:30.6]} 21... Qa7 {[%clk 0:02:09.3]} 22. Rxd7
{[%clk 0:02:25.5]} 22... Nxd7 {[%clk 0:02:08.3]} 23. Rd1 {[%clk 0:02:26.4]}
23... Ne5 {[%clk 0:02:06.6]} 24. Be2 {[%clk 0:02:14.8]} 24... c5 {[%clk
0:01:52.6]} 25. Qa4 {[%clk 0:02:11.4]} 25... Nc6 {[%clk 0:01:49.7]} 26. Bf3
{[%clk 0:02:05.5]} 26... Qa8 {[%clk 0:01:32.1]} 27. Rd7 {[%clk 0:01:52.8]} 27...
Bd4 {[%clk 0:01:27.1]} 28. Rxb7 {[%clk 0:01:38.7]} 28... Ne5 {[%clk 0:01:18.7]}
29. Rxf7 {[%clk 0:01:34.6]} 29... Nxf3+ {[%clk 0:01:14.7]} 30. Rxf3 {[%clk
0:01:35.5]} 30... Rf8 {[%clk 0:01:13.7]} 31. Rxf8+ {[%clk 0:01:17.7]} 31... Qxf8
{[%clk 0:01:12.4]} 32. Be1 {[%clk 0:01:18.4]} 32... Qf5 {[%clk 0:01:01.7]} 33.
Qxa6 {[%clk 0:00:38.3]} 33... Qe4 {[%clk 0:01:00.1]} 34. Qa5 {[%clk 0:00:26.1]}
34... Qe2 {[%clk 0:00:51.5]} 35. Kh2 {[%clk 0:00:19.5]} 35... Bxf2 {[%clk
0:00:35.2]} 36. Qd8+ {[%clk 0:00:18.3]} 36... Kf7 {[%clk 0:00:32.9]} 37. Bxf2
{[%clk 0:00:18]} 37... Qxf2 {[%clk 0:00:31.9]} 38. Qc7+ {[%clk 0:00:18.5]} 38...
Kf6 {[%clk 0:00:29.8]} 39. a4 {[%clk 0:00:17.9]} 39... e5 {[%clk 0:00:26.9]} 40.
Qd6+ {[%clk 0:00:15.7]} 40... Kf7 {[%clk 0:00:20.2]} 41. Qxe5 {[%clk 0:00:16]}
1-0

[Event "*** SCC Grand Prix: Titled Tuesday Blitz"]
[Site "Chess.com"]
[Date "2020.09.29"]
[Round "4"]
[White "chessmadara"]
[Black "Grieve72"]
[Result "0-1"]
[WhiteElo "2132"]
[BlackElo "2460"]
[TimeControl "180+1"]
[EndTime "10:38:48 PDT"]
[Termination "Grieve72 won by resignation"]

1. e4 {[%clk 0:03:00.9]} 1... c5 {[%clk 0:02:58.5]} 2. Nf3 {[%clk 0:03:00.2]}
2... e6 {[%clk 0:02:58.9]} 3. d4 {[%clk 0:02:59.2]} 3... cxd4 {[%clk 0:02:59.8]}
4. Nxd4 {[%clk 0:02:59.6]} 4... Nc6 {[%clk 0:03:00.4]} 5. Nc3 {[%clk 0:02:58.9]}
5... Qc7 {[%clk 0:03:00.8]} 6. Be2 {[%clk 0:02:42.7]} 6... a6 {[%clk 0:03:00.1]}
7. O-O {[%clk 0:02:40.4]} 7... Nf6 {[%clk 0:02:59.8]} 8. Be3 {[%clk 0:02:40.1]}
8... Bb4 {[%clk 0:02:58.5]} 9. Na4 {[%clk 0:02:39.7]} 9... Be7 {[%clk 0:02:58]}
10. Nxc6 {[%clk 0:02:38]} 10... bxc6 {[%clk 0:02:58.9]} 11. Nb6 {[%clk
0:02:37.7]} 11... Rb8 {[%clk 0:02:59.4]} 12. Nxc8 {[%clk 0:02:37.1]} 12... Qxc8
{[%clk 0:03:00.3]} 13. e5 {[%clk 0:01:56]} 13... Nd5 {[%clk 0:02:58.4]} 14. Bc1
{[%clk 0:01:56.1]} 14... c5 {[%clk 0:02:36.8]} 15. c4 {[%clk 0:01:54.6]} 15...
Nb4 {[%clk 0:02:37]} 16. b3 {[%clk 0:01:52.1]} 16... O-O {[%clk 0:02:31.6]} 17.
Bf4 {[%clk 0:01:46.6]} 17... Nc6 {[%clk 0:02:23.5]} 18. Bf3 {[%clk 0:01:40.8]}
18... a5 {[%clk 0:02:08.7]} 19. Be4 {[%clk 0:01:40]} 19... Rd8 {[%clk
0:01:58.4]} 20. Qh5 {[%clk 0:01:30.4]} 20... g6 {[%clk 0:01:58.5]} 21. Qh6
{[%clk 0:01:29.5]} 21... Nd4 {[%clk 0:01:53.4]} 22. Rfe1 {[%clk 0:01:14.3]}
22... a4 {[%clk 0:01:41.1]} 23. bxa4 {[%clk 0:01:11]} 23... Qa6 {[%clk
0:01:41.2]} 24. Re3 {[%clk 0:01:09.3]} 24... Bf8 {[%clk 0:01:34.5]} 25. Qh4
{[%clk 0:01:05.9]} 25... Nf5 {[%clk 0:01:12.2]} 26. Bxf5 {[%clk 0:01:05.2]}
26... exf5 {[%clk 0:01:13.1]} 27. Rh3 {[%clk 0:00:55.6]} 27... h5 {[%clk
0:01:12.9]} 28. Qg5 {[%clk 0:00:55.6]} 28... Kh7 {[%clk 0:00:51.2]} 29. Rd1
{[%clk 0:00:48.1]} 29... Qxa4 {[%clk 0:00:46.6]} 30. Rxh5+ {[%clk 0:00:35.1]}
30... gxh5 {[%clk 0:00:47.5]} 31. Qxh5+ {[%clk 0:00:35.1]} 31... Kg8 {[%clk
0:00:47.9]} 32. Qg5+ {[%clk 0:00:34.7]} 32... Bg7 {[%clk 0:00:48.2]} 33. Re1
{[%clk 0:00:31.8]} 33... Rb6 {[%clk 0:00:43.8]} 34. Qxd8+ {[%clk 0:00:31.5]}
34... Kh7 {[%clk 0:00:37.3]} 35. Qxb6 {[%clk 0:00:31.3]} 35... Qxc4 {[%clk
0:00:37.9]} 36. Qb1 {[%clk 0:00:27.2]} 36... Qxf4 {[%clk 0:00:37]} 37. a4 {[%clk
0:00:26.4]} 37... Qxa4 {[%clk 0:00:35.1]} 38. Qxf5+ {[%clk 0:00:25.5]} 38... Kg8
{[%clk 0:00:35.8]} 39. Qg5 {[%clk 0:00:21.6]} 39... c4 {[%clk 0:00:32.8]} 40. h4
{[%clk 0:00:20.6]} 40... c3 {[%clk 0:00:25.6]} 41. h5 {[%clk 0:00:20.2]} 41...
Kh7 {[%clk 0:00:26.2]} 42. Qf5+ {[%clk 0:00:19.3]} 42... Kg8 {[%clk 0:00:24.7]}
43. Qxd7 {[%clk 0:00:17.3]} 43... Qxd7 {[%clk 0:00:24.5]} 0-1